fUST/lending_fUST_20240721
["ID","MTS","AMOUNT","RATE_DAILY","PERIOD"]
[332747321,1721501443422,-500.0,0.00013698,2]
[332747322,1721501443432,-2054.12,0.00013698,2]
[332747323,1721501443441,-500.0,0.00013698,2]
[332747324,1721501443450,-500.0,0.00013698,2]
[332747325,1721501443460,-500.0,0.00013698,2]
[332747326,1721501443469,-500.0,0.00013698,2]
[332747327,1721501443478,-500.0,0.00013698,2]
[332747328,1721501443488,-500.0,0.00013698,2]
[332747329,1721501443497,-796.91,0.00013698,2]
[332747330,1721501443507,-500.0,0.00013698,2]
[332747331,1721501443516,-524.86017018,0.00013698,2]
[332747332,1721501443526,-2697.92,0.00013698,2]
[332747333,1721501443536,-501.77387035,0.00013698,2]
[332747334,1721501443545,-505.93712617,0.00013698,2]
[332747335,1721501443554,-1172.73,0.00013698,2]
[332747336,1721501443563,-500.0,0.00013698,2]
[332747337,1721501443573,-500.0,0.00013698,2]
[332747338,1721501443582,-500.0,0.00013698,2]
[332747339,1721501443593,-500.0,0.00013698,2]
[332747340,1721501443602,-500.0,0.00013698,2]
[332747341,1721501443612,-2158.72,0.00013698,2]
[332747342,1721501443621,-500.0,0.00013698,2]
[332747343,1721501443630,-456.093618,0.00013698,2]
[332747344,1721501443639,-500.0,0.00013698,2]
[332747345,1721501443648,-741.17,0.00013698,2]
[332747346,1721501443658,-513.01,0.00013698,2]
[332747347,1721501443667,-1045.53,0.00013698,2]
[332747348,1721501443677,-959.91,0.00013698,2]
[332747349,1721501443686,-921.43,0.00013698,2]
[332747350,1721501443695,-500.0,0.00013698,2]
[332747351,1721501443705,-500.0,0.00013698,2]
[332747352,1721501443714,-500.0,0.00013698,2]
[332747353,1721501443723,-500.0,0.00013698,2]
[332747354,1721501443732,-500.0,0.00013698,2]
[332747355,1721501443742,-500.0,0.00013698,2]
[332747356,1721501443751,-3848.9,0.00013698,2]
[332747357,1721501443760,-500.0,0.00013698,2]
[332747358,1721501443770,-930.37,0.00013698,2]
[332747359,1721501443779,-3002.39,0.00013698,2]
[332747360,1721501443789,-500.0,0.00013698,2]
[332747361,1721501443799,-500.0,0.00013698,2]
[332747362,1721501443808,-513.33275701,0.00013698,2]
[332747363,1721501443818,-500.0,0.00013698,2]
[332747364,1721501443828,-1334.16,0.00013698,2]
[332747365,1721501443838,-500.0,0.00013698,2]
[332747366,1721501443847,-9974.88,0.00013698,2]
[332747367,1721501443856,-500.0,0.00013698,2]
[332747368,1721501443866,-500.7278879,0.00013698,2]
[332747369,1721501443876,-825.15,0.00013698,2]
[332747370,1721501443885,-763.32,0.00013698,2]
[332747371,1721501443894,-500.0,0.00013698,2]
[332747372,1721501443904,-500.0,0.00013698,2]
[332747373,1721501443913,-682.11,0.00013698,2]
[332747374,1721501443923,-653.11,0.00013698,2]
[332747375,1721501443932,-501.88237339,0.00013698,2]
[332747376,1721501443941,-500.0,0.00013698,2]
[332747377,1721501443951,-3024.55,0.00013698,2]
[332747378,1721501443960,-501.59185014,0.00013698,2]
[332747379,1721501443969,-1226.56,0.00013698,2]
[332747380,1721501443979,-500.0,0.00013698,2]
[332747381,1721501443988,-2628.42,0.00013698,2]
[332747382,1721501443999,-677.36,0.00013698,2]
[332747383,1721501444010,-505.68,0.00013698,2]
[332747384,1721501444019,-500.0,0.00013698,2]
[332747385,1721501444029,-500.0,0.00013698,2]
[332747386,1721501444039,-518.49437446,0.00013698,2]
[332747387,1721501444049,-500.0,0.00013698,2]
[332747388,1721501444059,-678.49,0.00013698,2]
[332747389,1721501444068,-3611.41,0.00013698,2]
[332747390,1721501444078,-500.0,0.00013698,2]
[332747391,1721501444087,-2356.17,0.00013698,2]
[332747392,1721501444097,-1048.68,0.00013698,2]
[332747393,1721501444106,-500.0,0.00013698,2]
[332747394,1721501444115,-4801.01,0.00013698,2]
[332747395,1721501444125,-500.0,0.00013698,2]
[332747396,1721501444134,-500.0,0.00013698,2]
[332747397,1721501444144,-291.97498847,0.00013698,2]
[332747398,1721501444153,-626.75,0.00013698,2]
[332747399,1721501444162,-5614.66,0.00013698,2]
[332747400,1721501444172,-1167.12,0.00013698,2]
[332747401,1721501444181,-500.0,0.00013698,2]
[332747402,1721501444190,-1003.63,0.00013698,2]
[332747403,1721501444200,-500.0,0.00013698,2]
[332747404,1721501444209,-2182.76,0.00013698,2]
[332747405,1721501444218,-500.0,0.00013698,2]
[332747406,1721501444227,-500.0,0.00013698,2]
[332747407,1721501444237,-500.0,0.00013698,2]
[332747408,1721501444246,-500.0,0.00013698,2]
[332747409,1721501444255,-500.0,0.00013698,2]
[332747410,1721501444264,-500.0,0.00013698,2]
[332747411,1721501444274,-500.0,0.00013698,2]
[332747412,1721501444285,-500.0,0.00013698,2]
[332747413,1721501444294,-500.0,0.00013698,2]
[332747414,1721501444304,-500.0,0.00013698,2]
[332747415,1721501444313,-500.0,0.00013698,2]
[332747416,1721501444322,-500.0,0.00013698,2]
[332747417,1721501444332,-501.29419541,0.00013698,2]
[332747418,1721501444341,-596.66,0.00013698,2]
[332747419,1721501444351,-500.0,0.00013698,2]
[332747420,1721501444364,-500.0,0.00013698,2]
[332747421,1721501444374,-500.0,0.00013698,2]
[332747422,1721501444383,-505.7857432,0.00013698,2]
[332747423,1721501444395,-1876.24,0.00013698,2]
[332747424,1721501444405,-500.0,0.00013698,2]
[332747425,1721501444415,-922.66,0.00013698,2]
[332747426,1721501444424,-500.0,0.00013698,2]
[332747427,1721501444434,-2660.77,0.00013698,2]
[332747428,1721501444445,-769.49,0.00013698,2]
[332747429,1721501444455,-500.0,0.00013698,2]
[332747430,1721501444464,-500.0,0.00013698,2]
[332747431,1721501444474,-601.56,0.00013698,2]
[332747432,1721501444484,-500.0,0.00013698,2]
[332747433,1721501444493,-2479.41,0.00013698,2]
[332747434,1721501444505,-9525.09,0.00013698,2]
[332747435,1721501444515,-500.0,0.00013698,2]
[332747436,1721501444524,-500.0,0.00013698,2]
[332747437,1721501444534,-500.0,0.00013698,2]
[332747438,1721501444545,-1594.52,0.00013698,2]
[332747439,1721501444555,-500.0,0.00013698,2]
[332747440,1721501444567,-502.92442484,0.00013698,2]
[332747441,1721501444576,-500.0,0.00013698,2]
[332747442,1721501444586,-2915.71,0.00013698,2]
[332747443,1721501444597,-505.99,0.00013698,2]
[332747444,1721501444608,-1164.01,0.00013698,2]
[332747445,1721501444619,-500.0,0.00013698,2]
[332747446,1721501444630,-500.0,0.00013698,2]
[332747447,1721501444641,-650.96,0.00013698,2]
[332747448,1721501444652,-5451.22,0.00013698,2]
[332747449,1721501444662,-500.0,0.00013698,2]
[332747450,1721501444672,-503.42,0.00013698,2]
[332747451,1721501444683,-503.42,0.00013698,2]
[332747452,1721501444693,-503.42,0.00013698,2]
[332747453,1721501444704,-2974.58,0.00013698,2]
[332747454,1721501444756,-500.0,0.00013698,2]
[332747455,1721501444765,-500.0,0.00013698,2]
[332747456,1721501444775,-503.42,0.00013698,2]
[332747457,1721501444787,-503.42,0.00013698,2]
[332747458,1721501444797,-503.42,0.00013698,2]
[332747459,1721501444808,-503.42,0.00013698,2]
[332747460,1721501444820,-503.42,0.00013698,2]
[332747461,1721501444832,-503.42,0.00013698,2]
[332747462,1721501444842,-503.42,0.00013698,2]
[332747463,1721501444851,-500.08985855,0.00013698,2]
[332747464,1721501444860,-503.42,0.00013698,2]
[332747465,1721501444869,-503.42,0.00013698,2]
[332747466,1721501444878,-503.42,0.00013698,2]
[332747467,1721501444888,-503.42,0.00013698,2]
[332747468,1721501444897,-500.0,0.00013698,2]
[332747469,1721501444906,-503.42,0.00013698,2]
[332747470,1721501444916,-502.86855471,0.00013698,2]
[332747471,1721501444925,-500.0,0.00013698,2]
[332747472,1721501444935,-19190.55,0.00013698,2]
[332747473,1721501444945,-718.79,0.00013698,2]
[332747474,1721501444954,-501.52214706,0.00013698,2]
[332747475,1721501444963,-500.0,0.00013698,2]
[332747476,1721501444973,-500.0,0.00013698,2]
[332747477,1721501444982,-500.0,0.00013698,2]
[332747478,1721501444992,-2305.92,0.00013698,2]
[332747479,1721501445002,-500.0,0.00013698,2]
[332747480,1721501445012,-500.0,0.00013698,2]
[332747481,1721501445021,-500.0,0.00013698,2]
[332747482,1721501445030,-6714.24,0.00013698,2]
[332747483,1721501445040,-500.0,0.00013698,2]
[332747484,1721501445049,-500.0,0.00013698,2]
[332747485,1721501445058,-150.0,0.00013698,2]
[332747486,1721501445067,-500.0,0.00013698,2]
[332747487,1721501445077,-4166.01,0.00013698,2]
[332747488,1721501445086,-500.0,0.00013698,2]
[332747489,1721501445095,-643.3,0.00013698,2]
[332747490,1721501445104,-500.0,0.00013698,2]
[332747491,1721501445114,-1529.29,0.00013698,2]
[332747492,1721501445123,-500.0,0.00013698,2]
[332747493,1721501445132,-500.0,0.00013698,2]
[332747494,1721501445142,-646.05085239,0.00013698,2]
[332747495,1721501445151,-3139.22,0.00013698,2]
[332747496,1721501445160,-500.0,0.00013698,2]
[332747497,1721501445169,-2186.15,0.00013698,2]
[332747498,1721501445178,-601.4404759,0.00013698,2]
[332747499,1721501445186,-500.0,0.00013698,2]
[332747500,1721501445195,-501.3438523,0.00013698,2]
[332747501,1721501445205,-5219.53,0.00013698,2]
[332747502,1721501445214,-500.0,0.00013698,2]
[332747503,1721501445223,-500.0,0.00013698,2]
[332747504,1721501445232,-681.17,0.00013698,2]
[332747505,1721501445241,-1202.04,0.00013698,2]
[332747506,1721501445250,-500.0,0.00013698,2]
[332747507,1721501445259,-500.0,0.00013698,2]
[332747508,1721501445268,-500.81614324,0.00013698,2]
[332747509,1721501445278,-3387.15,0.00013698,2]
[332747510,1721501445288,-505.79508747,0.00013698,2]
[332747511,1721501445297,-12551.18,0.00013698,2]
[332747512,1721501445307,-500.0,0.00013698,2]
[332747514,1721501445316,-789.3,0.00013698,2]
[332747515,1721501445325,-535.13087164,0.00013698,2]
[332747516,1721501445333,-500.0,0.00013698,2]
[332747517,1721501445343,-504.76781749,0.00013698,2]
[332747518,1721501445352,-509.82043443,0.00013698,2]
[332747519,1721501445364,-500.0,0.00013698,2]
[332747520,1721501445373,-500.0,0.00013698,2]
[332747521,1721501445382,-800.39,0.00013698,2]
[332747522,1721501445390,-5622.12,0.00013698,2]
[332747523,1721501445400,-193.47418578,0.00013698,2]
[332747524,1721501445408,-2178.19,0.00013698,2]
[332747525,1721501445417,-505.46201646,0.00013698,2]
[332747526,1721501445426,-500.0,0.00013698,2]
[332747527,1721501445436,-2969.09,0.00013698,2]
[332747528,1721501445445,-500.0,0.00013698,2]
[332747529,1721501445454,-500.0,0.00013698,2]
[332747530,1721501445463,-508.40747236,0.00013698,2]
[332747531,1721501445472,-624.9,0.00013698,2]
[332747532,1721501445481,-500.0,0.00013698,2]
[332747533,1721501445491,-1165.16,0.00013698,2]
[332747534,1721501445499,-500.0,0.00013698,2]
[332747535,1721501445509,-500.0,0.00013698,2]
[332747536,1721501445518,-500.0,0.00013698,2]
[332747537,1721501445527,-500.0,0.00013698,2]
[332747538,1721501445537,-500.0,0.00013698,2]
[332747539,1721501445547,-500.0,0.00013698,2]
[332747540,1721501445556,-500.0,0.00013698,2]
[332747541,1721501445566,-500.0,0.00013698,2]
[332747542,1721501445577,-500.0,0.00013698,2]
[332747543,1721501445586,-500.0,0.00013698,2]
[332747545,1721501445596,-500.0,0.00013698,2]
[332747546,1721501445606,-500.0,0.00013698,2]
[332747547,1721501445615,-500.0,0.00013698,2]
[332747548,1721501445625,-500.0,0.00013698,2]
[332747549,1721501445634,-270.43895219,0.00013698,2]
[332747550,1721501445644,-562.7,0.00013698,2]
[332747551,1721501445653,-3487.3,0.00013698,2]
[332747552,1721501445663,-500.0,0.00013698,2]
[332747553,1721501445672,-500.0,0.00013698,2]
[332747555,1721501445682,-1491.24,0.00013698,2]
[332747556,1721501445692,-500.0,0.00013698,2]
[332747558,1721501445701,-898.11,0.00013698,2]
[332747559,1721501445711,-500.0,0.00013698,2]
[332747560,1721501445721,-500.0,0.00013698,2]
[332747561,1721501445731,-500.0,0.00013698,2]
[332747562,1721501445741,-500.0,0.00013698,2]
[332747563,1721501445750,-500.0,0.00013698,2]
[332747564,1721501445759,-3266.7,0.00013698,2]
[332747565,1721501445768,-500.0,0.00013698,2]
[332747566,1721501445777,-500.0,0.00013698,2]
[332747567,1721501445788,-500.0,0.00013698,2]
[332747568,1721501445798,-500.0,0.00013698,2]
[332747569,1721501445808,-500.0,0.00013698,2]
[332747570,1721501445818,-500.0,0.00013698,2]
[332747571,1721501445828,-500.0,0.00013698,2]
[332747572,1721501445838,-219.09698425,0.00013698,2]
[332747573,1721501445847,-500.0,0.00013698,2]
[332747574,1721501445857,-2917.77,0.00013698,2]
[332747575,1721501445866,-500.0,0.00013698,2]
[332747576,1721501445875,-500.0,0.00013698,2]
[332747577,1721501445884,-191.2377236,0.00013698,2]
[332747578,1721501445894,-500.0,0.00013698,2]
[332747579,1721501445903,-500.0,0.00013698,2]
[332747580,1721501445913,-500.0,0.00013698,2]
[332747582,1721501445922,-500.0,0.00013698,2]
[332747583,1721501445932,-500.0,0.00013698,2]
[332747584,1721501445941,-500.0,0.00013698,2]
[332747585,1721501445952,-1186.42,0.00013698,2]
[332747586,1721501445963,-1240.33,0.00013698,2]
[332747587,1721501445974,-4206.24,0.00013698,2]
[332747588,1721501445985,-4206.24,0.00013698,2]
[332747589,1721501445995,-4206.24,0.00013698,2]
[332747590,1721501446004,-4206.24,0.00013698,2]
[332747591,1721501446013,-4206.24,0.00013698,2]
[332747592,1721501446022,-594.43,0.00013698,2]
[332747593,1721501446032,-4206.24,0.00013698,2]
[332747594,1721501446041,-4206.24,0.00013698,2]
[332747595,1721501446051,-4206.24,0.00013698,2]
[332747596,1721501446060,-4206.24,0.00013698,2]
[332747597,1721501446069,-524.66,0.00013698,2]
[332747598,1721501446079,-500.0,0.00013698,2]
[332747599,1721501446089,-4206.24,0.00013698,2]
[332747600,1721501446098,-4206.24,0.00013698,2]
[332747601,1721501446108,-4206.24,0.00013698,2]
[332747602,1721501446118,-4206.24,0.00013698,2]
[332747603,1721501446127,-4206.24,0.00013698,2]
[332747604,1721501446136,-500.0,0.00013698,2]
[332747605,1721501446145,-4206.24,0.00013698,2]
[332747606,1721501446154,-4206.24,0.00013698,2]
[332747607,1721501446164,-4206.24,0.00013698,2]
[332747608,1721501446173,-4206.24,0.00013698,2]
[332747609,1721501446183,-4206.24,0.00013698,2]
[332747610,1721501446191,-500.0,0.00013698,2]
[332747611,1721501446201,-4206.24,0.00013698,2]
[332747612,1721501446210,-4206.24,0.00013698,2]
[332747613,1721501446220,-4206.24,0.00013698,2]
[332747614,1721501446230,-500.0,0.00013698,2]
[332747615,1721501446240,-4206.24,0.00013698,2]
[332747616,1721501446250,-504.74873459,0.00013698,2]
[332747617,1721501446261,-4206.43423838,0.00013698,2]
[332747618,1721501446270,-533.97409384,0.00013698,2]
[332747619,1721501446280,-500.0,0.00013698,2]
[332747620,1721501446290,-500.0,0.00013698,2]
[332747621,1721501446298,-15542.84,0.00013698,2]
[332747622,1721501446307,-500.0,0.00013698,2]
[332747623,1721501446317,-1810.39,0.00013698,2]
[332747624,1721501446326,-3104.21,0.00013698,2]
[332747625,1721501446335,-3104.21,0.00013698,2]
[332747626,1721501446344,-484.1569262,0.00013698,2]
[332747627,1721501446357,-500.0,0.00013698,2]
[332747628,1721501446366,-3104.21,0.00013698,2]
[332747629,1721501446375,-3104.21,0.00013698,2]
[332747630,1721501446384,-3104.21,0.00013698,2]
[332747631,1721501446394,-3104.21,0.00013698,2]
[332747632,1721501446404,-1627.8,0.00013698,2]
[332747633,1721501446414,-3104.21,0.00013698,2]
[332747634,1721501446424,-3104.21,0.00013698,2]
[332747635,1721501446435,-3104.21,0.00013698,2]
[332747636,1721501446446,-3104.21,0.00013698,2]
[332747637,1721501446456,-500.0,0.00013698,2]
[332747638,1721501446468,-1267.33,0.00013698,2]
[332747639,1721501446477,-3104.21,0.00013698,2]
[332747640,1721501446487,-3104.21,0.00013698,2]
[332747641,1721501446497,-3104.21,0.00013698,2]
[332747642,1721501446505,-3104.21,0.00013698,2]
[332747643,1721501446515,-500.0,0.00013698,2]
[332747644,1721501446525,-3104.21,0.00013698,2]
[332747645,1721501446535,-3104.21,0.00013698,2]
[332747646,1721501446544,-3104.21,0.00013698,2]
[332747647,1721501446553,-500.0,0.00013698,2]
[332747648,1721501446561,-3104.21,0.00013698,2]
[332747649,1721501446570,-3104.21,0.00013698,2]
[332747650,1721501446579,-1165.62,0.00013698,2]
[332747651,1721501446588,-3104.21,0.00013698,2]
[332747652,1721501446597,-500.0,0.00013698,2]
[332747653,1721501446606,-3104.21,0.00013698,2]
[332747654,1721501446615,-3104.21,0.00013698,2]
[332747655,1721501446624,-3104.21,0.00013698,2]
[332747656,1721501446633,-500.0,0.00013698,2]
[332747657,1721501446642,-3104.37919494,0.00013698,2]
[332747658,1721501446651,-1594.87,0.00013698,2]
[332747659,1721501446661,-500.0,0.00013698,2]
[332747660,1721501446671,-529.69,0.00013698,2]
[332747661,1721501446691,-961.48,0.00013698,2]
[332747662,1721501446703,-500.0,0.00013698,2]
[332747663,1721501446714,-1593.24,0.00013698,2]
[332747664,1721501446724,-500.0,0.00013698,2]
[332747665,1721501446733,-258.57234386,0.00013698,2]
[332747666,1721501446743,-961.82,0.00013698,2]
[332747667,1721501446752,-503.98,0.00013698,2]
[332747668,1721501446761,-500.0,0.00013698,2]
[332747669,1721501446770,-2831.62,0.00013698,2]
[332747670,1721501446780,-345.18233406,0.00013698,2]
[332747671,1721501446789,-1152.03,0.00013698,2]
[332747672,1721501446798,-15614.35,0.00013698,2]
[332747673,1721501446807,-500.0,0.00013698,2]
[332747674,1721501446817,-568.38256445,0.00013698,2]
[332747675,1721501446826,-10864.83,0.00013698,2]
[332747676,1721501446836,-500.0,0.00013698,2]
[332747677,1721501446845,-500.0,0.00013698,2]
[332747678,1721501446856,-500.0,0.00013698,2]
[332747679,1721501446865,-506.08089395,0.00013698,2]
[332747680,1721501446874,-580.38,0.00013698,2]
[332747681,1721501446884,-251.95448152,0.00013698,2]
[332747682,1721501446893,-983.82,0.00013698,2]
[332747683,1721501446902,-2374.03,0.00013698,2]
[332747684,1721501446912,-500.0,0.00013698,2]
[332747685,1721501446921,-512.07655604,0.00013698,2]
[332747686,1721501446930,-613.0113624,0.00013699,2]
[332747687,1721501446939,-3000.0,0.00013699,2]
[332747688,1721501446949,-151.0,0.00013699,2]
[332747689,1721501446958,-494.35585,0.00013699,2]
[332747690,1721501446968,-494.35585,0.00013699,2]
[332747691,1721501446977,-1374.674225,0.00013699,2]
[332747692,1721501446987,-2320.44038728,0.00013714,2]
[332747693,1721501446995,-503.42,0.00013971,2]
[332747694,1721501447004,-503.42,0.00013971,2]
[332747695,1721501447014,-503.42,0.00013971,2]
[332747696,1721501447023,-503.42,0.00013971,2]
[332747697,1721501447033,-503.42,0.00013971,2]
[332747698,1721501447043,-503.42,0.00013971,2]
[332747699,1721501447053,-503.42,0.00013971,2]
[332747700,1721501447062,-503.42,0.00013971,2]
[332747701,1721501447071,-503.52640636,0.00013971,2]
[332747702,1721501447080,-512.27304389,0.00013972,2]
[332747703,1721501447090,-618.28186363,0.00013972,2]
[332747704,1721501447099,-355.50504189,0.00013972,2]
[332747705,1721501447108,-500.0,0.00013972,2]
[332747706,1721501447117,-500.0,0.00013972,2]
[332747707,1721501447127,-500.0,0.00013972,2]
[332747708,1721501447136,-500.0,0.00013972,2]
[332747709,1721501447145,-256.28354357,0.00013972,2]
[332747710,1721501447154,-500.0,0.00013972,2]
[332747711,1721501447163,-500.0,0.00013972,2]
[332747712,1721501447172,-500.0,0.00013972,2]
[332747713,1721501447182,-255.62,0.00013972,2]
[332747714,1721501447191,-500.0,0.00013972,2]
[332747715,1721501447201,-690.28,0.00013972,2]
[332747716,1721501447210,-500.0,0.00013972,2]
[332747717,1721501447219,-500.0,0.00013972,2]
[332747718,1721501447229,-521.24,0.00013972,2]
[332747719,1721501447238,-500.0,0.00013972,2]
[332747720,1721501447247,-289.40371987,0.00013972,2]
[332747721,1721501447255,-563.29,0.00013972,2]
[332747722,1721501447265,-633.4,0.00013972,2]
[332747723,1721501447274,-723.75,0.00013972,2]
[332747724,1721501447284,-500.0,0.00013972,2]
[332747725,1721501447294,-500.0,0.00013972,2]
[332747726,1721501447304,-2392.2,0.00013972,2]
[332747727,1721501447312,-2399.27,0.00013972,2]
[332747728,1721501447322,-500.0,0.00013972,2]
[332747729,1721501447331,-500.0,0.00013972,2]
[332747730,1721501447340,-500.0,0.00013972,2]
[332747731,1721501447350,-507.77956758,0.00013972,2]
[332747732,1721501447362,-642.9,0.00013972,2]
[332747733,1721501447371,-500.0,0.00013972,2]
[332747734,1721501447380,-500.0,0.00013972,2]
[332747735,1721501447391,-170.43129503,0.00013972,2]
[332747736,1721501447402,-758.22,0.00013972,2]
[332747737,1721501447412,-500.0,0.00013972,2]
[332747738,1721501447422,-500.0,0.00013972,2]
[332747739,1721501447436,-500.0,0.00013972,2]
[332747740,1721501447446,-500.0,0.00013972,2]
[332747741,1721501447456,-500.0,0.00013972,2]
[332747742,1721501447465,-1415.97,0.00013972,2]
[332747743,1721501447475,-500.0,0.00013972,2]
[332747744,1721501447484,-500.0,0.00013972,2]
[332747745,1721501447494,-500.0,0.00013972,2]
[332747746,1721501447503,-500.0,0.00013972,2]
[332747747,1721501447512,-500.0,0.00013972,2]
[332747748,1721501447523,-500.0,0.00013972,2]
[332747749,1721501447532,-500.0,0.00013972,2]
[332747750,1721501447545,-502.09315046,0.00013972,2]
[332747751,1721501447554,-500.0,0.00013972,2]
[332747752,1721501447565,-553.59452076,0.00013972,2]
[332747753,1721501447574,-912.35,0.00013972,2]
[332747754,1721501447584,-254.88943529,0.00013972,2]
[332747755,1721501447593,-500.0,0.00013972,2]
[332747756,1721501447603,-500.0,0.00013972,2]
[332747757,1721501447612,-500.0,0.00013972,2]
[332747758,1721501447622,-500.0,0.00013972,2]
[332747759,1721501447632,-510.42578769,0.00013972,2]
[332747760,1721501447642,-1189.46,0.00013972,2]
[332747761,1721501447651,-617.69,0.00013972,2]
[332747762,1721501447661,-500.0,0.00013972,2]
[332747763,1721501447670,-500.0,0.00013972,2]
[332747764,1721501447680,-821.95,0.00013972,2]
[332747765,1721501447689,-500.0,0.00013972,2]
[332747766,1721501447699,-513.24561122,0.00013972,2]
[332747767,1721501447709,-500.0,0.00013972,2]
[332747768,1721501447718,-693.44,0.00013972,2]
[332747769,1721501447728,-500.0,0.00013972,2]
[332747770,1721501447737,-500.0,0.00013972,2]
[332747771,1721501447747,-500.0,0.00013972,2]
[332747772,1721501447756,-500.0,0.00013972,2]
[332747773,1721501447766,-500.0,0.00013972,2]
[332747774,1721501447775,-500.0,0.00013972,2]
[332747775,1721501447785,-558.13,0.00013972,2]
[332747776,1721501447796,-500.0,0.00013972,2]
[332747777,1721501447806,-500.0,0.00013972,2]
[332747778,1721501447817,-500.0,0.00013972,2]
[332747779,1721501447827,-500.0,0.00013972,2]
[332747780,1721501447837,-500.0,0.00013972,2]
[332747781,1721501447848,-500.0,0.00013972,2]
[332747782,1721501447859,-506.63376774,0.00013972,2]
[332747783,1721501447870,-641.37526896,0.00013972,2]
[332747784,1721501447881,-539.6,0.00013972,2]
[332747785,1721501447892,-500.0,0.00013972,2]
[332747786,1721501447903,-608.63406425,0.00013972,2]
[332747787,1721501447913,-500.0,0.00013972,2]
[332747788,1721501447923,-500.0,0.00013972,2]
[332747789,1721501447935,-500.0,0.00013972,2]
[332747790,1721501447945,-500.0,0.00013972,2]
[332747791,1721501447956,-500.0,0.00013972,2]
[332747792,1721501447967,-508.33268368,0.00013972,2]
[332747793,1721501447978,-2385.11,0.00013972,2]
[332747794,1721501447989,-1025.73,0.00013972,2]
[332747795,1721501447998,-500.0,0.00013972,2]
[332747796,1721501448008,-500.0,0.00013972,2]
[332747797,1721501448018,-1085.97,0.00013972,2]
[332747798,1721501448028,-500.0,0.00013972,2]
[332747799,1721501448039,-500.0,0.00013972,2]
[332747800,1721501448049,-500.0,0.00013972,2]
[332747801,1721501448060,-500.0,0.00013972,2]
[332747802,1721501448070,-500.0,0.00013972,2]
[332747803,1721501448080,-2781.42,0.00013972,2]
[332747804,1721501448091,-892.81,0.00013972,2]
[332747805,1721501448102,-500.0,0.00013972,2]
[332747806,1721501448112,-500.0,0.00013972,2]
[332747807,1721501448122,-500.0,0.00013972,2]
[332747808,1721501448133,-500.0,0.00013972,2]
[332747809,1721501448143,-500.0,0.00013972,2]
[332747810,1721501448154,-500.0,0.00013972,2]
[332747811,1721501448164,-500.0,0.00013972,2]
[332747812,1721501448174,-500.0,0.00013972,2]
[332747813,1721501448184,-500.0,0.00013972,2]
[332747814,1721501448195,-500.0,0.00013972,2]
[332747815,1721501448205,-626.5,0.00013972,2]
[332747816,1721501448214,-500.0,0.00013972,2]
[332747817,1721501448224,-500.0,0.00013972,2]
[332747818,1721501448234,-500.0,0.00013972,2]
[332747819,1721501448245,-500.0,0.00013972,2]
[332747820,1721501448255,-500.0,0.00013972,2]
[332747821,1721501448265,-500.0,0.00013972,2]
[332747822,1721501448276,-500.0,0.00013972,2]
[332747823,1721501448286,-820.06,0.00013972,2]
[332747824,1721501448297,-500.0,0.00013972,2]
[332747825,1721501448307,-500.0,0.00013972,2]